bitfinex/quotes_ETHUSD_20240819
["timestamp","ask_amount","ask_price","bid_price","bid_amount"]
[1724102029053,1.312,2619.9,2619.7,0.09725894]
[1724102029297,5.12897,2619.9,2619.7,0.09725894]
[1724102029465,12.38264821,2619.8,2619.7,0.09725894]
[1724102029767,6.16384,2619.5,2619.3,3.0]
[1724102029918,2.3463,2619.5,2619.3,3.0]
[1724102030656,2.3463,2619.7,2619.4,3.81766]
[1724102030967,2.3463,2619.7,2619.3,6.81772]
[1724102031260,2.3463,2619.7,2619.4,3.81765]
[1724102031261,1.312,2619.6,2619.4,3.81765]
[1724102032570,2.3463,2619.7,2619.4,3.81765]
[1724102033634,4.75005384,2619.7,2619.4,3.81765]
[1724102034565,2.3463,2619.7,2619.4,3.81765]
[1724102035772,2.3463,2619.7,2619.4,7.63523]
[1724102035977,2.3463,2619.7,2619.5,0.09725894]
[1724102040646,4.75005384,2619.7,2619.5,0.09725894]
[1724102041792,2.3463,2619.7,2619.5,0.09725894]
[1724102043843,4.75005384,2619.7,2619.4,3.81758]
[1724102044056,4.75005384,2619.7,2619.5,0.09720957]
[1724102045247,2.3463,2619.7,2619.5,0.09720957]
[1724102045964,4.75005384,2619.7,2619.5,0.09720957]
[1724102046169,2.3463,2619.7,2619.5,0.09720957]
[1724102046341,4.75067527,2619.7,2619.5,0.09720957]
[1724102049559,2.3463,2619.7,2619.5,0.09720957]
[1724102053268,6.22141728,2619.8,2619.5,0.09720957]
[1724102053269,2.40431728,2619.8,2619.6,3.81736]
[1724102053605,12.54853683,2620.1,2619.6,3.81734]
[1724102053606,2.40431728,2619.9,2619.6,3.81734]
[1724102053905,2.40431728,2620.0,2619.7,0.09720957]
[1724102054432,2.40431728,2620.0,2619.8,3.81708]
[1724102054568,2.40431728,2620.0,2619.8,7.63405]
[1724102054874,1.312,2620.1,2619.9,0.09717117]
[1724102054875,3.71631728,2620.1,2619.9,0.09717117]
[1724102055089,2.40431728,2620.1,2619.9,3.91401117]
[1724102055268,2.40431728,2620.1,2620.0,3.81679]
[1724102055463,2.4037839,2620.1,2620.0,3.81679]
[1724102055781,2.4037839,2620.1,2620.0,3.91255783]
[1724102056282,2.4037839,2620.2,2620.0,3.91255783]
[1724102058115,2.4037839,2620.2,2620.0,0.09576783]
[1724102058314,1.312,2620.1,2620.0,0.09576783]
[1724102058535,1.312,2620.1,2619.8,3.81697]
[1724102058818,1.312,2620.1,2620.0,0.0955046]
[1724102059023,1.312,2620.1,2619.8,3.81697]
[1724102059315,1.312,2620.1,2620.0,0.0955046]
[1724102059706,3.7157839,2620.1,2620.0,0.0955046]
[1724102059886,1.312,2620.1,2620.0,0.0955046]
[1724102060527,1.312,2620.1,2619.8,3.81697]
[1724102060730,1.312,2620.1,2619.9,0.0955046]
[1724102065123,16.11419475,2620.0,2619.9,0.0955046]
[1724102065325,18.09113818,2620.0,2619.9,0.0955046]
[1724102065524,18.09113818,2620.0,2618.6,2.2712]
[1724102065525,2.2616,2619.4,2618.6,6.08995]
[1724102065696,3.5736,2619.4,2618.8,3.81852]
[1724102065893,3.5736,2619.4,2618.8,3.81845]
[1724102066217,3.5736,2619.4,2618.9,0.46760175]
[1724102066621,3.71506616,2619.6,2618.9,0.46760175]
[1724102066835,3.5736,2619.6,2619.0,3.81815]
[1724102067079,7.39109,2619.6,2619.0,3.81815]
[1724102067284,9.79415616,2619.6,2619.0,3.81815]
[1724102067482,9.79415616,2619.6,2619.1,0.08575675]
[1724102067656,7.39109,2619.6,2619.1,0.08575675]
[1724102068213,3.81753,2619.5,2619.1,0.08575675]
[1724102068483,3.81753,2619.5,2618.9,3.81839]
[1724102068645,3.81753,2619.5,2618.9,4.713282]
[1724102068845,7.63514,2619.5,2619.0,0.08575675]
[1724102069058,3.81753,2619.5,2619.0,0.08575675]
[1724102070491,7.63517,2619.5,2619.0,0.08575675]
[1724102070973,3.81767,2619.4,2619.0,0.08575675]
[1724102073711,3.81753,2619.5,2619.0,4.38389762]
[1724102074065,7.63518,2619.5,2619.0,4.38389762]
[1724102074264,3.81807,2619.2,2619.0,0.08575675]
[1724102074530,6.2324,2619.1,2619.0,0.08575675]
[1724102074658,6.2324,2619.1,2618.6,3.0]
[1724102074659,3.81827,2619.0,2618.6,3.0]
[1724102075578,3.81827,2619.0,2618.6,6.8188]
[1724102075781,3.81827,2619.0,2618.7,0.81308]
[1724102075981,3.81827,2619.0,2618.7,3.81308]
[1724102076615,6.2324,2619.1,2618.7,3.81308]
[1724102076908,6.23241,2619.1,2618.7,3.0]
[1724102077212,3.8184,2618.9,2618.5,3.0]
[1724102078173,3.81836,2619.0,2618.5,3.0]
[1724102078800,3.81852,2618.9,2618.5,3.0]
[1724102079013,3.81863,2618.8,2618.3,3.81913]
[1724102079217,3.81863,2618.8,2618.4,3.0]
[1724102079522,3.81863,2618.8,2618.2,3.81929]
[1724102079523,3.81884,2618.6,2618.2,3.81929]
[1724102080627,3.81884,2618.6,2618.1,3.81954]
[1724102080807,3.81899,2618.5,2618.3,0.07825417]
[1724102080973,3.81899,2618.5,2618.1,3.81954]
[1724102081174,3.81899,2618.5,2618.4,0.07825417]
[1724102081415,3.81884,2618.6,2618.1,4.583453]
[1724102081623,3.81884,2618.6,2618.4,0.07836367]
[1724102081917,3.81884,2618.6,2618.1,4.583453]
[1724102082168,3.819,2618.5,2618.1,0.763913]
[1724102082372,2.4285,2618.4,2618.1,3.763913]
[1724102083346,6.24764,2618.4,2618.1,3.763913]
[1724102083548,2.4285,2618.4,2618.1,0.763913]
[1724102085578,3.81884,2618.6,2618.1,4.583463]
[1724102085579,6.22314,2618.6,2618.1,4.583463]
[1724102085745,6.22314,2618.6,2618.2,0.07580448]
[1724102086837,3.819,2618.5,2618.2,0.07580448]
[1724102089884,6.22314,2618.6,2618.2,0.07580448]
[1724102090073,10.04211,2618.6,2618.2,0.07580448]
[1724102090454,3.81898,2618.5,2618.2,0.07580448]
[1724102091687,3.81898,2618.5,2618.0,7.63923]
[1724102091841,3.81914,2618.4,2618.3,0.07619322]
[1724102092336,3.81914,2618.4,2618.0,7.63922]
[1724102092545,3.81914,2618.4,2618.1,0.84011522]
[1724102092876,6.22314,2618.6,2618.1,0.84011522]
[1724102092877,3.819,2618.5,2618.1,0.84011522]
[1724102093037,3.819,2618.5,2618.1,0.07619322]
[1724102098581,3.819,2618.5,2618.1,3.89575322]
[1724102099788,3.81933,2618.3,2618.1,0.07619322]
[1724102099965,3.81933,2618.3,2617.8,3.81993]
[1724102099966,3.81948,2618.2,2617.8,3.81993]
[1724102100152,3.7408,2618.1,2617.7,3.82012]
[1724102100485,3.7408,2618.1,2617.7,3.82007]
[1724102100691,3.7408,2618.1,2617.6,0.1258442]
[1724102100993,7.56037,2618.1,2617.7,3.82012]
[1724102101200,7.56037,2618.1,2617.7,3.89642276]
[1724102102192,3.81939,2618.3,2617.7,0.07630276]
[1724102102193,2.2719,2618.3,2617.7,0.07630276]
[1724102102350,13.45099,2618.5,2618.0,7.63929]
[1724102102553,9.6319,2618.5,2618.0,3.81962]
[1724102102863,13.4509,2618.5,2618.1,0.07630276]
[1724102103266,9.6319,2618.5,2618.1,0.07630276]
[1724102103439,7.36,2618.5,2618.3,3.81925]
[1724102103986,7.36,2618.5,2618.4,0.07630276]
[1724102104151,2.2719,2618.7,2618.4,0.07630276]
[1724102104353,2.2719,2618.7,2618.3,3.81925]
[1724102105385,6.09061,2618.7,2618.3,3.81925]
[1724102105878,2.2719,2618.7,2618.3,3.81919]
[1724102106083,2.2719,2618.7,2618.4,3.81903]
[1724102106234,7.40234,2618.9,2618.5,3.81897]
[1724102106439,7.40234,2618.9,2618.5,0.07630276]
[1724102106768,11.22081,2618.9,2618.5,0.07630276]
[1724102107078,7.40234,2618.9,2618.3,4.62197323]
[1724102107283,7.40234,2618.9,2618.6,0.07630276]
[1724102107493,7.40234,2618.9,2618.3,3.81915]
[1724102107638,7.40234,2618.9,2618.7,0.07630276]
[1724102107840,7.40234,2618.9,2618.4,3.8191]
[1724102108041,7.40234,2618.9,2618.8,0.07630276]
[1724102108296,7.40234,2618.9,2618.4,3.8191]
[1724102108636,11.22082,2618.9,2618.5,0.07630276]
[1724102108949,9.31434,2618.9,2618.5,0.07630276]
[1724102109579,8.00234,2618.9,2618.5,0.07630276]
[1724102110787,1.912,2618.9,2618.7,3.81868]
[1724102110947,1.912,2618.9,2618.8,10.04618]
[1724102111345,1.912,2618.9,2618.8,10.12234036]
[1724102112589,1.912,2618.9,2618.8,7.71324036]
[1724102113353,1.912,2618.9,2618.8,8.8484744]
[1724102113979,1.912,2618.9,2618.8,3.89470036]
[1724102114279,1.912,2618.9,2618.8,0.07616036]
[1724102115115,1.912,2618.9,2618.6,7.63748]
[1724102115305,1.912,2618.9,2618.8,0.07616036]
[1724102115468,1.912,2618.9,2618.8,7.63708]
[1724102115672,1.912,2618.9,2618.8,8.47694836]
[1724102116028,1.912,2618.9,2618.8,4.65840836]
[1724102116789,1.912,2618.9,2618.8,8.47694836]
[1724102117505,1.912,2618.9,2618.8,11.47694836]
[1724102124443,1.912,2618.9,2618.8,21.58192836]
[1724102124581,1.912,2618.9,2618.8,17.76338836]
[1724102124787,1.912,2618.9,2618.8,21.58192836]
[1724102127135,1.912,2618.9,2618.8,17.76338836]
[1724102127286,1.912,2618.9,2618.8,21.58192836]
[1724102129331,2.3536,2619.9,2619.7,3.81723]
[1724102129531,2.3536,2619.9,2619.8,3.81708]
[1724102129731,2.3536,2619.9,2619.8,3.89239016]
[1724102130485,2.3536,2619.9,2619.8,0.07531016]
[1724102130926,2.3536,2619.9,2619.7,7.63442]
[1724102130927,2.3536,2619.9,2619.7,3.81715]
[1724102131128,2.3536,2619.9,2619.8,0.07503656]
[1724102131490,2.3536,2619.9,2619.8,3.81708]
[1724102131689,2.3536,2619.9,2619.8,3.94312867]
[1724102132300,2.3625,2620.3,2619.8,0.90207654]
[1724102132644,2.3625,2620.3,2620.0,3.81667]
[1724102133644,2.3625,2620.3,2620.1,0.12602678]
[1724102137512,2.3625,2620.3,2620.0,3.81667]
[1724102137934,2.3625,2620.3,2620.1,0.12552632]
[1724102138335,2.3625,2620.3,2620.0,3.81667]
[1724102138659,2.3625,2620.3,2620.1,0.12552632]
[1724102138861,2.3625,2620.3,2620.0,3.81667]
[1724102139018,2.3625,2620.3,2620.2,0.12552632]
[1724102139221,2.3625,2620.3,2620.0,3.81667]
[1724102139453,2.3625,2620.3,2620.2,0.12552632]
[1724102139765,2.3625,2620.3,2620.0,3.81667]
[1724102140134,2.3625,2620.3,2620.1,0.12552632]
[1724102140429,2.3185,2620.6,2620.3,3.81633]
[1724102140831,2.3185,2620.6,2620.4,3.81619]
[1724102141043,2.3185,2620.6,2620.4,3.94167256]
[1724102141257,2.3185,2620.6,2620.4,3.81619]
[1724102142155,2.3185,2620.6,2620.5,3.81606]
[1724102142408,2.3185,2620.9,2620.6,3.81586]
[1724102142710,2.3185,2620.9,2620.5,3.94154256]
[1724102142855,2.3185,2620.9,2620.7,0.12527473]
[1724102143051,5.12762,2620.8,2620.4,3.81619]
[1724102143269,2.3185,2620.7,2620.4,3.81613]
[1724102144323,2.3185,2620.7,2620.4,7.63226]
[1724102145396,2.3185,2620.7,2620.5,3.816]
[1724102145617,2.3185,2620.7,2620.5,4.579213]
[1724102145902,2.3185,2620.7,2620.6,0.12493019]
[1724102155135,6.24677,2620.7,2620.6,0.12493019]
[1724102155633,6.24677,2620.7,2620.2,3.81644]
[1724102155808,6.24677,2620.7,2620.6,0.12493019]
[1724102156164,6.24677,2620.7,2620.2,3.81644]
[1724102156439,6.24677,2620.7,2620.2,4.579746]
[1724102156440,3.81594,2620.6,2620.2,4.579746]
[1724102156615,3.81594,2620.6,2620.3,0.12488646]
[1724102156931,3.81594,2620.6,2620.2,3.81644]
[1724102157118,3.81594,2620.6,2620.4,0.12488646]
[1724102157322,2.431,2620.7,2620.4,3.81612]
[1724102157517,2.431,2620.7,2620.5,0.12488646]
[1724102159036,2.431,2620.7,2620.5,3.94087646]
[1724102159397,2.431,2620.7,2620.5,0.12488646]
[1724102164549,6.24677,2620.7,2620.5,0.12488646]
[1724102164702,6.24677,2620.7,2620.3,3.81633]
[1724102165243,6.24677,2620.7,2620.4,0.12488646]
[1724102165621,2.431,2620.7,2620.4,3.94107646]
[1724102165923,2.431,2620.7,2620.5,4.59178065]
[1724102166612,2.431,2620.7,2620.6,0.12488646]
[1724102167856,3.81508,2621.2,2620.6,0.12488646]
[1724102167857,2.4568,2621.2,2620.7,3.81567]
[1724102168059,2.4568,2621.2,2621.0,3.81524]
[1724102168205,2.4568,2621.2,2621.1,3.81519]
[1724102168850,2.4568,2621.2,2621.1,0.12474977]
[1724102169750,2.4133,2621.5,2621.1,3.93993977]
[1724102170044,2.4133,2621.5,2621.2,3.81501]
[1724102170452,2.4133,2621.5,2621.3,0.12474977]
[1724102170647,2.4133,2621.5,2621.3,3.81489]
[1724102170856,2.4133,2621.5,2621.4,0.12474977]
[1724102171060,2.4133,2621.8,2621.4,3.93938977]
[1724102171409,2.4133,2621.8,2621.5,3.81459]
[1724102171807,2.4133,2621.8,2621.6,0.12474977]
[1724102172258,0.24133,2621.7,2621.3,3.81489]
[1724102172453,6.22754,2621.8,2621.7,0.12474977]
[1724102172654,6.22754,2621.8,2621.3,3.81489]
[1724102172858,6.22754,2621.8,2621.7,0.12474977]
[1724102173063,6.22754,2621.8,2621.3,7.62962]
[1724102173361,6.22754,2621.8,2621.7,0.12474977]
[1724102173559,6.22754,2621.8,2621.3,7.62962]
[1724102174027,6.22754,2621.8,2621.4,0.12474977]
[1724102174228,6.22754,2621.8,2621.4,3.93948977]
[1724102174465,2.4133,2621.8,2621.4,3.93948977]
[1724102174643,2.4133,2621.8,2621.5,0.77542898]
[1724102175164,2.4133,2621.8,2621.6,0.12474977]
[1724102176452,6.22749,2621.8,2621.6,0.12474977]
[1724102177057,6.22749,2621.8,2621.3,3.81489]
[1724102177256,6.22749,2621.8,2621.7,0.12474977]
[1724102177455,6.22749,2621.8,2621.3,3.81489]
[1724102177786,10.04174,2621.8,2621.4,0.381489]
[1724102177983,6.22749,2621.8,2621.4,0.50623877]
[1724102178455,3.81434,2621.7,2621.4,0.50623877]
[1724102179555,3.81458,2621.6,2621.4,0.12474977]
[1724102179760,11.3395,2621.5,2621.4,0.12474977]
[1724102179972,6.2129,2621.5,2620.9,3.0]
[1724102180277,6.2129,2621.5,2621.0,4.23963251]
[1724102181085,3.81476,2621.4,2621.0,4.23963251]
[1724102181640,6.21292,2621.5,2621.0,4.23963251]
[1724102181841,2.3983,2621.5,2621.2,3.81504]
[1724102182041,6.20875021,2621.9,2621.4,3.81475]
[1724102182042,2.471,2621.8,2621.4,3.81475]
[1724102182640,2.471,2621.8,2621.5,0.12431251]
[1724102182987,2.471,2621.8,2621.5,3.93890251]
[1724102189008,2.471,2621.8,2621.6,3.81444]
[1724102189301,2.471,2621.8,2621.7,0.12385341]
[1724102190993,2.471,2621.8,2621.7,3.93816341]
[1724102192413,2.4742,2622.0,2621.7,3.93816341]
[1724102192790,2.4742,2622.0,2621.7,3.81431]
[1724102192994,2.4742,2622.0,2621.7,4.65853797]
[1724102196463,2.4742,2622.0,2621.8,0.12361302]
[1724102196665,2.4742,2622.0,2621.7,4.65853797]
[1724102196911,2.4742,2622.0,2621.9,0.12361302]
[1724102197108,2.4742,2622.0,2621.7,4.65853797]
[1724102197266,2.4742,2622.0,2621.9,0.12361302]
[1724102197466,2.4742,2622.0,2621.6,3.81443]
[1724102197467,6.28808,2622.0,2621.6,3.81443]
[1724102197664,7.60008,2622.0,2621.9,0.12361302]
[1724102197913,7.60008,2622.0,2621.6,4.65868497]
[1724102198114,7.60008,2622.0,2621.9,0.12361302]
[1724102198283,7.60008,2622.0,2621.6,4.65868497]
[1724102198483,7.60008,2622.0,2621.9,0.12361302]
[1724102198708,7.60008,2622.0,2621.6,3.81443]
[1724102198915,7.60008,2622.0,2621.9,0.12361302]
[1724102199111,3.81425,2621.8,2621.3,4.196374]
[1724102199314,2.4683,2621.7,2621.4,0.8011414]
[1724102199518,6.28268,2621.7,2621.4,0.8011414]
[1724102199713,6.28268,2621.7,2621.2,3.81502]
[1724102199935,2.4683,2621.7,2621.3,3.0]
[1724102200099,2.4683,2621.7,2621.3,6.81489]
[1724102200301,3.81401,2622.0,2621.6,3.81444]
[1724102200302,6.28231,2622.0,2621.6,3.81444]
[1724102200515,6.28231,2622.0,2621.4,0.681489]
[1724102200516,6.28231,2622.0,2621.5,3.81453]
[1724102200829,6.28231,2622.0,2621.5,7.62901]
[1724102201028,6.28231,2622.0,2621.5,8.7600599]
[1724102201213,2.4683,2622.0,2621.6,3.81434]
[1724102201398,2.4683,2622.0,2621.7,3.81425]
[1724102205943,2.4683,2622.0,2621.8,0.12354747]
[1724102206262,2.4683,2622.0,2621.7,3.81425]
[1724102206433,2.4683,2622.0,2621.9,0.12354747]
[1724102206739,2.4683,2622.0,2621.7,3.81425]
[1724102206951,2.4683,2622.0,2621.9,0.12354747]
[1724102207104,2.4683,2622.0,2621.6,3.81443]
[1724102207305,2.4683,2622.0,2621.9,0.12354747]
[1724102207532,2.4683,2622.0,2621.6,3.81443]
[1724102207738,6.28218,2622.0,2621.9,0.12354747]
[1724102208033,6.28218,2622.0,2621.6,3.81443]
[1724102208235,7.59418,2622.0,2621.6,3.81443]
[1724102208487,2.2873,2621.9,2621.7,0.12354747]
[1724102208653,2.2873,2621.9,2621.5,7.62914]
[1724102208854,2.2873,2621.9,2621.8,0.12354747]
[1724102209164,2.2873,2621.9,2621.5,7.62914]
[1724102209369,2.2873,2621.9,2621.8,0.12354747]
[1724102209974,2.2873,2621.9,2621.5,7.62909]
[1724102210189,2.2873,2621.9,2621.8,0.12354747]
[1724102210396,2.2873,2621.9,2621.5,7.62908]
[1724102210689,2.2873,2621.9,2621.6,4.577358]
[1724102210844,2.2873,2621.9,2621.6,4.70090547]
[1724102211686,2.2873,2621.9,2621.6,0.12354747]
[1724102211895,3.81449,2621.6,2621.3,3.0]
[1724102212671,2.3725,2621.4,2620.6,2.3173]
[1724102212951,2.3725,2621.0,2620.8,3.81555]
[1724102213397,2.3725,2621.0,2620.8,4.709874]
[1724102214165,2.3725,2621.0,2620.9,3.0]
[1724102215255,2.3725,2621.0,2620.9,6.81548]
[1724102215457,2.3725,2621.2,2620.9,6.81548]
[1724102216466,2.3725,2621.2,2620.9,7.9680294]
[1724102219916,2.3725,2621.2,2620.9,3.0]
[1724102220128,2.3725,2621.2,2620.8,7.709944]
[1724102220129,6.18758,2621.2,2620.8,7.709944]
[1724102220309,2.3696,2621.1,2620.5,3.81597]
[1724102220508,8.58716853,2621.1,2620.5,7.63196]
[1724102220702,8.58716853,2621.1,2620.6,3.93534085]
[1724102220703,3.81535,2621.0,2620.6,3.93534085]
[1724102220946,3.81535,2621.0,2620.6,0.11944085]
[1724102226442,3.81535,2621.0,2620.6,3.93531085]
[1724102227158,6.23867,2620.7,2620.6,0.11944085]
[1724102227313,6.23867,2620.7,2620.2,7.6329]
[1724102227515,6.23867,2620.7,2620.6,0.11982225]
[1724102227732,6.23867,2620.7,2620.3,6.81635]
[1724102227929,6.23867,2620.7,2620.6,0.11982225]
[1724102228127,6.23867,2620.7,2620.3,6.81635]
[1724102228427,3.81577,2620.7,2620.6,0.11982225]
[1724102228641,3.81615,2620.5,2620.0,3.8167]
[1724102229045,3.81615,2620.5,2620.1,3.81661]
[1724102229245,3.81621,2620.4,2620.0,3.81678]
[1724102229456,2.4229,2620.3,2620.0,7.63347]
[1724102229652,2.4229,2620.3,2620.0,3.81669]
[1724102231857,2.4229,2620.3,2620.0,3.81668]
[1724102234985,2.4229,2620.3,2619.7,1.312]
[1724102234986,3.81656,2620.2,2619.7,3.81716]
[1724102235314,2.4229,2620.3,2619.8,3.81698]
[1724102235469,2.4229,2620.3,2619.9,3.81683]
[1724102236009,2.4229,2620.3,2620.0,0.1203944]
[1724102236416,2.4229,2620.3,2620.1,3.81664]
[1724102236622,2.4229,2620.3,2620.1,3.81657]
[1724102236794,2.4229,2620.3,2620.1,4.21026644]
[1724102236980,2.4229,2620.3,2620.2,0.12080323]
[1724102239124,2.3272,2620.5,2620.2,3.93721323]
[1724102239422,2.3272,2621.1,2620.6,3.81592]
[1724102239627,2.3272,2621.1,2620.7,3.81573]
[1724102239781,7.4544,2621.1,2620.7,0.12078142]
[1724102243527,3.81535,2621.0,2620.7,0.12078142]
[1724102247838,2.4753,2620.9,2620.7,0.12078142]
[1724102251867,2.4753,2620.9,2620.6,3.81584]
[1724102252406,2.4753,2620.9,2620.7,0.12033988]
[1724102259554,6.29079,2620.9,2620.7,0.12033988]
[1724102259747,6.29079,2620.9,2620.5,3.81605]
[1724102259951,6.29079,2620.9,2620.8,0.12033988]
[1724102260161,6.29079,2620.9,2620.5,3.81605]
[1724102260344,6.29079,2620.9,2620.8,0.12033988]
[1724102260658,8.98382193,2620.9,2620.4,3.81619]
[1724102261010,8.98382193,2620.9,2620.5,0.12033988]
[1724102261212,2.3454,2620.8,2620.4,3.81613]
[1724102261406,2.3454,2620.8,2620.6,0.12033988]
[1724102261723,2.3454,2620.8,2620.7,0.12033988]
[1724102261935,2.3454,2620.8,2620.5,3.81605]
[1724102262141,2.3454,2620.8,2620.7,0.12027992]
[1724102262451,2.3454,2620.8,2620.5,3.81605]
[1724102262637,2.3454,2620.8,2620.7,0.12027992]
[1724102262865,2.3454,2620.8,2620.5,3.81605]
[1724102263069,2.3454,2620.8,2620.7,0.12027992]
[1724102263246,2.3454,2620.8,2620.5,3.81605]
[1724102263441,2.3454,2620.8,2620.7,0.12027992]
[1724102263642,2.3454,2620.8,2620.5,3.81605]
[1724102264156,2.3454,2620.8,2620.6,0.12027992]
[1724102266905,2.3454,2620.8,2620.6,3.93618992]
[1724102267212,2.3454,2620.8,2620.6,4.71142191]
[1724102267579,2.3454,2620.8,2620.6,3.93618992]
[1724102268304,2.3454,2620.8,2620.6,0.12027992]
[1724102270110,13.74214183,2620.7,2620.6,0.12027992]
[1724102270412,13.74214183,2620.7,2619.9,3.81686]
[1724102270413,3.81624,2620.4,2619.9,3.81686]
[1724102270614,2.3958,2620.3,2619.9,3.81686]
[1724102270773,2.3958,2620.3,2619.6,1.312]
[1724102270774,3.81657,2620.2,2619.7,3.81713]
[1724102271311,2.3958,2620.1,2619.8,3.81707]
[1724102272683,2.3958,2620.1,2619.7,3.81722]
[1724102272883,2.3958,2620.1,2619.8,3.0]
[1724102273092,2.3958,2620.1,2619.8,6.81705]
[1724102273294,2.3958,2620.1,2619.8,7.88044]
[1724102273513,2.3958,2620.1,2619.9,3.81684]
[1724102275525,2.3326,2620.4,2619.9,3.81684]
[1724102275683,2.3326,2620.4,2620.0,3.81677]
[1724102276321,2.3326,2620.4,2619.9,3.81684]
[1724102276322,3.7007,2620.3,2619.8,3.0]
[1724102276480,5.12865,2620.1,2619.3,3.81769]
[1724102276679,5.12865,2620.1,2619.5,3.81744]
[1724102276680,2.3887,2619.9,2619.5,3.81744]
[1724102277870,2.3887,2619.8,2619.1,3.81799]
[1724102278031,2.3887,2619.7,2619.2,3.81784]
[1724102278325,2.3887,2619.7,2619.3,7.63548]
[1724102278907,2.3887,2619.7,2619.3,3.81769]
[1724102279500,2.3887,2619.7,2619.3,7.63544]
[1724102280690,2.3887,2619.7,2619.4,3.81763]
[1724102281020,2.3887,2619.7,2619.4,0.10868965]
[1724102281227,2.3887,2619.7,2619.1,5.12998]
[1724102281228,2.3887,2619.7,2619.3,3.81781]
[1724102281532,6.20598,2619.7,2619.5,0.10868965]
[1724102281748,6.20598,2619.7,2619.4,0.10868965]
[1724102281952,6.20598,2619.7,2619.2,3.81794]
[1724102282150,7.51798,2619.7,2619.5,0.10868965]
[1724102282307,7.51798,2619.7,2619.2,3.81794]
[1724102282639,7.51798,2619.7,2619.3,0.10868965]
[1724102282865,7.51798,2619.7,2619.3,3.92648965]
[1724102283042,7.51798,2619.7,2619.2,3.81794]
[1724102283246,2.4065,2619.6,2619.2,3.81794]
[1724102283443,2.4065,2619.6,2619.3,0.10934751]
[1724102283807,2.4065,2619.6,2619.3,3.8178]
[1724102284046,2.4065,2619.6,2619.4,0.10934751]
[1724102286345,6.22389,2619.6,2619.4,0.10934751]
[1724102286544,2.3041,2619.5,2619.2,3.81795]
[1724102287235,2.3041,2619.5,2619.3,3.8178]
[1724102287766,2.3041,2619.5,2619.3,7.63554]
[1724102287985,2.3041,2619.5,2619.3,3.81774]
[1724102288516,2.3041,2619.5,2619.3,7.63547]
[1724102289058,2.3041,2619.5,2619.3,3.81773]
[1724102289282,2.3113,2619.7,2619.4,3.81766]
[1724102289640,2.3113,2619.7,2619.3,0.89477]
[1724102289841,2.3113,2619.7,2619.2,1.312]
[1724102290280,2.3113,2619.7,2619.5,3.8174]
[1724102290688,2.3113,2619.9,2619.6,3.81731]
[1724102291444,2.3113,2619.9,2619.5,3.8175]
[1724102291743,2.2622,2619.8,2619.4,3.8176]
[1724102291944,3.5742,2619.8,2619.4,3.8176]
[1724102292389,7.3913,2619.8,2619.4,3.8176]
[1724102292687,7.3913,2619.8,2619.5,3.81742]
[1724102292688,2.2622,2619.8,2619.5,3.81742]
[1724102293041,2.2622,2619.8,2619.6,3.81725]
[1724102295774,2.2622,2619.8,2619.7,0.10953244]
[1724102297274,2.2622,2619.8,2619.6,3.81736]
[1724102297484,2.4897,2620.0,2619.7,3.92676244]
[1724102297690,7.36,2620.1,2619.9,3.81686]
[1724102297839,2.4897,2620.2,2620.0,0.763391]
[1724102298044,2.4897,2620.2,2620.0,4.68959081]
[1724102298304,2.4897,2620.2,2620.0,4.580091]
[1724102298442,2.4897,2620.2,2620.1,0.10949981]
[1724102298645,2.4897,2620.2,2620.1,3.92613981]
[1724102299908,6.30519,2620.9,2620.3,3.81635]
[1724102300047,2.4897,2620.9,2620.5,3.81604]
[1724102300245,2.4897,2620.9,2620.7,3.81577]
[1724102300665,2.4897,2620.9,2620.6,3.8159]
[1724102300867,2.4897,2620.9,2620.8,0.10918441]
[1724102301691,2.4897,2620.9,2620.6,3.8159]
[1724102301899,2.4897,2620.9,2620.8,0.10918441]
[1724102302048,2.4897,2620.9,2620.6,3.8159]
[1724102302249,2.4897,2620.9,2620.7,3.92494441]
[1724102302697,2.4897,2620.9,2620.7,0.10918441]
[1724102303998,2.4897,2620.9,2620.7,3.92495441]
[1724102305264,2.4897,2620.9,2620.7,3.92488441]
[1724102306115,2.4897,2620.9,2620.7,8.64586785]
[1724102306412,2.4897,2620.9,2620.7,4.83016785]
[1724102308345,2.4897,2620.9,2620.8,3.81562]
[1724102308706,2.4897,2620.9,2620.8,3.92396713]
[1724102308907,2.2815,2621.1,2620.8,3.92396713]
[1724102311803,2.2815,2621.1,2620.8,7.73952713]
[1724102312005,2.2815,2621.1,2620.8,3.92390713]
[1724102314252,3.81498,2621.3,2620.9,3.81546]
[1724102314541,6.11428,2621.3,2620.9,3.81546]
[1724102315012,6.11428,2621.3,2621.0,0.10796292]
[1724102317326,5.12707,2621.2,2621.0,0.10796292]
[1724102317748,5.12707,2621.2,2620.8,3.81561]
[1724102318251,5.12707,2621.2,2620.9,0.10794118]
[1724102319610,2.2993,2621.3,2621.0,3.81519]
[1724102319811,2.2993,2621.3,2621.1,3.81509]
[1724102320012,2.2993,2621.3,2621.2,3.81504]
[1724102320347,2.3232,2621.5,2621.2,3.92291055]
[1724102323446,2.3232,2621.5,2621.3,3.81483]
[1724102323626,2.3232,2621.5,2621.3,3.8149]
[1724102323817,2.3137,2621.7,2621.4,3.81467]
[1724102324001,2.3137,2621.7,2621.4,3.92230154]
[1724102324603,2.3137,2621.7,2621.4,0.10763154]
[1724102326340,2.3137,2621.7,2621.4,8.59209763]
[1724102326547,2.4668,2621.9,2621.6,3.81446]
[1724102326775,2.4668,2621.9,2621.7,3.81425]
[1724102326979,2.4668,2621.9,2621.7,3.92180008]
[1724102327147,2.4668,2621.9,2621.7,4.69542909]
[1724102327476,1.312,2622.2,2621.9,3.81402]
[1724102327477,2.4924,2622.2,2621.9,3.81402]
[1724102327995,2.4924,2622.4,2622.0,3.92127405]
[1724102328276,2.4924,2622.4,2622.1,3.81372]